Workbook

Sheet Dati x impresa
C2: Tavola 1 - Reclami inviati dai consumatori alle imprese nel periodo: anno 2024
A3: Click sul pulsante in testa a ciascuna colonna per ordinare i dati in base ai corrispondenti valori. Click su "Reset" per tornare all'ordine alfabetico | C3: Numero reclami | G3: Numero reclami per milione di premi (2) | K3: Numero reclami/ 10.000 contratti (Tot.Vita e Danni)
A4: Tipologia imprese: - Italiane - Estere (1) | B4: Denominazione impresa
C5: Totale vita e danni | D5: Rami Vita | E5: Rami Danni (escl rc auto) | F5: Rc auto | G5: ="Totale vita e danni" & CHAR(10) & "Media:" & CHAR(10) & " It: " & ROUND(G144,2) & CHAR(10) & " E: " & ROUND(G145,2) -> Totale vita e danni Media: It: 1,52 E: 5,61 | H5: ="Rami Vita" & CHAR(10) & CHAR(10) & "Media:" & CHAR(10) & " It: " & ROUND(H144,2) & CHAR(10) & " E: " & ROUND(H145,2) -> Rami Vita Media: It: 0,17 E: 2,25 | I5: ="Rami Danni" & CHAR(10) & "(escl rc auto)" & CHAR(10) & "Media:" & CHAR(10) & " It: " & ROUND(I144,2) & CHAR(10) & " E: " & ROUND(I145,2) -> Rami Danni (escl rc auto) Media: It: 1,52 E: 5,01 | J5: ="Rc auto" & CHAR(10) & CHAR(10) & "Media:" & CHAR(10) & " It: " & ROUND(J144,2) & CHAR(10) & " E: " & ROUND(J145,2) -> Rc auto Media: It: 4,41 E: 7,81 | K5: ="Totale vita e danni" & CHAR(10) & "Media:" & CHAR(10) & " It: " & ROUND(K144,2) & CHAR(10) & " E: " & ROUND(K145,2) -> Totale vita e danni Media: It: 5,2 E: 7,48
A6: Impresa vigilata | B6: ALLEANZA ASSICURAZIONI S.P.A. | C6: 1306 | D6: 1167 | E6: 139 | F6: 0 | G6: 0.15 | H6: 0.14 | I6: 0.63 | K6: 3.77
A7: Impresa vigilata | B7: ALLIANZ DIRECT SOCIETA PER AZIONI | C7: 3085 | D7: 0 | E7: 784 | F7: 2301 | G7: 6.19 | I7: 5.77 | J7: 6.35 | K7: 24.1
A8: Impresa vigilata | B8: ALLIANZ NEXT S.P.A. (già Allianz Viva S.P.A..) | C8: 1623 | D8: 0 | E8: 617 | F8: 1006 | G8: 2.08 | I8: 1.33 | J8: 3.19 | K8: 8.28
A9: Impresa vigilata | B9: ALLIANZ SOCIETA' PER AZIONI | C9: 5644 | D9: 222 | E9: 2348 | F9: 3074 | G9: 0.75 | H9: 0.07 | I9: 0.93 | J9: 1.8 | K9: 3.92
A10: Impresa vigilata | B10: AMTRUST ASSICURAZIONI S.P.A. | C10: 94 | D10: 0 | E10: 94 | F10: 0 | G10: 0.33 | I10: 0.33 | K10: 3.88
A11: Impresa vigilata | B11: ARCA ASSICURAZIONI S.P.A. | C11: 781 | D11: 0 | E11: 590 | F11: 191 | G11: 2.5 | I11: 2.19 | J11: 4.46 | K11: 6.86
A12: Impresa vigilata | B12: ARCA VITA S.P.A. | C12: 139 | D12: 139 | E12: 0 | F12: 0 | G12: 0.05 | H12: 0.05 | K12: 2.3
A13: Impresa vigilata | B13: ARGOGLOBAL ASSICURAZIONI S.P.A. | C13: 4 | D13: 0 | E13: 4 | F13: 0 | K13: 9.78
A14: Impresa vigilata | B14: ASSICURATRICE MILANESE SPA - COMPAGNIA DI ASSICURAZIONI | C14: 152 | D14: 0 | E14: 78 | F14: 74 | G14: 2.05 | I14: 1.29 | J14: 5.35 | K14: 2.88
A15: Impresa vigilata | B15: ASSICURAZIONI GENERALI SOCIETA' PER AZIONI | C15: 9 | D15: 0 | E15: 9 | F15: 0 | G15: 0 | H15: 0 | I15: 0.01 | J15: 0 | K15: 1.66
A16: Impresa vigilata | B16: ASSICURAZIONI RISCHI AGRICOLI VMG 1857 S.P.A. | C16: 0 | D16: 0 | E16: 0 | F16: 0 | G16: 0 | I16: 0 | K16: 0
A17: Impresa vigilata | B17: ASSIMOCO S.P.A. COMPAGNIA DI ASSICURAZIONI E RIASSICURAZIONI - MOVIMENTO COOPERATIVO | C17: 362 | E17: 231 | F17: 131 | G17: 0.95 | I17: 0.88 | J17: 1.11 | K17: 2.73
A18: Impresa vigilata | B18: ASSIMOCO VITA S.P.A. COMPAGNIA DI ASSICURAZIONE SULLA VITA | C18: 21 | D18: 21 | G18: 0.02 | H18: 0.02 | K18: 0.42
A19: Impresa vigilata | B19: ATHORA ITALIA S.P.A. | C19: 84 | D19: 84 | E19: 0 | F19: 0 | G19: 0.25 | H19: 0.25 | K19: 5.24
A20: Impresa vigilata | B20: AXA ASSICURAZIONI S.P.A. | C20: 3300 | D20: 99 | E20: 899 | F20: 2302 | G20: 1.07 | H20: 0.15 | I20: 0.56 | J20: 2.83 | K20: 5.35
A21: Impresa vigilata | B21: AXA MPS ASSICURAZIONI DANNI SOCIETA' PER AZIONI | C21: 357 | D21: 0 | E21: 234 | F21: 123 | G21: 2.17 | I21: 1.75 | J21: 4.06 | K21: 1.75
A22: Impresa vigilata | B22: AXA MPS ASSICURAZIONI VITA SOCIETA' PER AZIONI | C22: 229 | D22: 229 | E22: 0 | F22: 0 | G22: 0.14 | H22: 0.14 | K22: 2.13
A23: Impresa vigilata | B23: BANCO BPM ASSICURAZIONI S.P.A | C23: 64 | D23: 0 | E23: 59 | F23: 5 | G23: 1.9 | I23: 1.75 | K23: 2.87
A24: Impresa vigilata | B24: BANCO BPM VITA S.P.A | C24: 90 | D24: 79 | E24: 11 | F24: 0 | G24: 0.07 | H24: 0.06 | I24: 3.11 | K24: 3.42
A25: Impresa vigilata | B25: BCC ASSICURAZIONI S.P.A. | C25: 82 | E25: 65 | F25: 17 | G25: 0.89 | I25: 0.76 | J25: 2.55 | K25: 2.46
A26: Impresa vigilata | B26: BCC VITA S.P.A. COMPAGNIA DI ASSICURAZIONI VITA | C26: 56 | D26: 56 | E26: 0 | F26: 0 | G26: 0.05 | H26: 0.05 | K26: 2.02
A27: Impresa vigilata | B27: BENE ASSICURAZIONI S.P.A. SOCIETA BENEFIT | C27: 366 | D27: 0 | E27: 65 | F27: 301 | G27: 1.26 | I27: 0.49 | J27: 1.91 | K27: 3.25
A28: Impresa vigilata | B28: BERKSHIRE HATHAWAY INTERNATIONAL INSURANCE LIMITED | C28: 17 | D28: 0 | E28: 17 | F28: 0 | G28: 0.38 | I28: 0.38 | K28: 10.56
A29: Impresa vigilata | B29: BIM VITA S.P.A. | C29: 1 | D29: 1 | E29: 0 | F29: 0 | G29: 0.05 | H29: 0.05 | K29: 2.32
A30: Impresa vigilata | B30: BNP PARIBAS CARDIF VITA COMPAGNIA DI ASSICURAZIONE E RIASSICURAZIONE S.P.A. | C30: 464 | D30: 447 | E30: 17 | F30: 0 | G30: 0.13 | H30: 0.13 | I30: NA (4) | K30: 7.1
A31: Impresa vigilata | B31: CF ASSICURAZIONI S.P.A. - COMPAGNIA DI ASSICURAZIONE PER IL CREDITO E LA FAMIGLIA | C31: 15 | D31: 0 | E31: 15 | F31: 0 | G31: 0.42 | I31: 0.42 | K31: 0.66
A32: Impresa vigilata | B32: CF LIFE COMPAGNIA DI ASSICURAZIONI VITA S.P.A. | C32: 11 | D32: 11 | E32: 0 | F32: 0 | G32: 0.36 | H32: 0.36 | K32: 1.01
A33: Impresa vigilata | B33: CNP UNICREDIT VITA S.P.A. | C33: 563 | D33: 563 | E33: 0 | F33: 0 | G33: 0.16 | H33: 0.16 | K33: 6.39
A34: Impresa vigilata | B34: CNP VITA ASSICURA S.P.A. | C34: 201 | D34: 201 | E34: 0 | F34: 0 | G34: 0.06 | H34: 0.06 | K34: 1.25
A35: Impresa vigilata | B35: COMPAGNIA ASSICURATRICE LINEAR S.P.A. | C35: 1694 | D35: 0 | E35: 38 | F35: 1656 | G35: 6.74 | I35: 0.65 | J35: 8.59 | K35: 24.1
A36: Impresa vigilata | B36: COMPAGNIA ITALIANA DI PREVIDENZA, ASSICURAZIONI E RIASSICURAZIONI S.P.A. | C36: 1676 | D36: 562 | E36: 440 | F36: 674 | G36: 0.87 | H36: 0.57 | I36: 0.77 | J36: 1.89 | K36: 6.98
A37: Impresa vigilata | B37: CREDEMASSICURAZIONI S.P.A. | C37: 163 | D37: 0 | E37: 163 | F37: 0 | G37: 2.66 | I37: 2.66 | K37: 5.22
A38: Impresa vigilata | B38: CREDEMVITA S.P.A. | C38: 51 | D38: 51 | E38: 0 | F38: 0 | G38: 0.02 | H38: 0.02 | K38: 2.19
A39: Impresa vigilata | B39: CREDIT AGRICOLE ASSICURAZIONI S.P.A. | C39: 882 | E39: 619 | F39: 263 | G39: 5.54 | I39: 4.56 | J39: 11.23 | K39: 11.27
A40: Impresa vigilata | B40: CREDIT AGRICOLE VITA S.P.A. | C40: 34 | D40: 34 | G40: 0.01 | H40: 0.01 | K40: 0.69
A41: Impresa vigilata | B41: CRONOS VITA ASSICURAZIONI S.P.A. | C41: 660 | D41: 660 | E41: 0 | F41: 0 | G41: NA (5) | H41: NA (5) | K41: NA (5)
A42: Impresa vigilata | B42: D.A.S. DIFESA AUTOMOBILISTICA SINISTRI - S.P.A. DI ASSICURAZIONE | C42: 48 | D42: 0 | E42: 48 | F42: 0 | G42: 0.77 | I42: 0.77 | K42: 1.38
A43: Impresa vigilata | B43: EUROP ASSISTANCE ITALIA S.P.A. | C43: 1428 | D43: 0 | E43: 1428 | F43: 0 | G43: 4.49 | I43: 4.49 | K43: 2.52
A44: Impresa vigilata | B44: FIDEURAM VITA S.P.A. | C44: 266 | D44: 266 | E44: 0 | F44: 0 | G44: 0.06 | H44: 0.06 | K44: 5.6
A45: Impresa vigilata | B45: GENERALI ITALIA S.P.A. | C45: 9703 | D45: 1105 | E45: 4323 | F45: 4275 | G45: 0.53 | H45: 0.11 | I45: 0.74 | J45: 2.11 | K45: 4.34
A46: Impresa vigilata | B46: GENERTEL S.P.A. | C46: 6259 | D46: 142 | E46: 1195 | F46: 4922 | G46: 10.8 | H46: 1.69 | I46: 4.66 | J46: 20.57 | K46: 27.96
A47: Impresa vigilata | B47: GENERTELLIFE S.P.A. | C47: 151 | D47: 151 | E47: 0 | F47: 0 | G47: 0.03 | H47: 0.03 | K47: 5.14
A48: Impresa vigilata | B48: GLOBAL ASSISTANCE COMPAGNIA DI ASSICURAZIONI E RIASSICURAZIONI S.P.A. | C48: 96 | D48: 0 | E48: 96 | F48: 0 | G48: 2.66 | I48: 2.66 | K48: 2.04
A49: Impresa vigilata | B49: GROUPAMA ASSICURAZIONI SOCIETA' PER AZIONI | C49: 1644 | D49: 23 | E49: 507 | F49: 1114 | G49: 1.26 | H49: 0.09 | I49: 0.84 | J49: 2.51 | K49: 7.02
A50: Impresa vigilata | B50: HDI ASSICURAZIONI S.P.A. | C50: 1246 | D50: 78 | E50: 442 | F50: 726 | G50: 0.68 | H50: 0.07 | I50: 1.23 | J50: 1.78 | K50: 5.63
A51: Impresa vigilata | B51: HELVETIA COMPAGNIA SVIZZERA D'ASSICURAZIONI S.A. | C51: 520 | E51: 226 | F51: 294 | G51: 1.09 | I51: 0.64 | J51: 2.32 | K51: 6.2
A52: Impresa vigilata | B52: HELVETIA ITALIA ASSICURAZIONI S.P.A. | C52: 133 | E52: 79 | F52: 54 | G52: 1.25 | I52: 0.92 | J52: 2.6 | K52: 2.23
A53: Impresa vigilata | B53: HELVETIA VITA COMPAGNIA ITALO-SVIZZERA DI ASSICURAZIONI SULLA VITA S.P.A. | C53: 46 | D53: 46 | G53: 0.14 | H53: 0.14 | K53: 2.32
A54: Impresa vigilata | B54: IMA ITALIA ASSISTANCE S.P.A. | C54: 28 | D54: 0 | E54: 28 | F54: 0 | G54: 1 | I54: 1 | K54: 0.1
A55: Impresa vigilata | B55: INTESA SANPAOLO ASSICURAZIONI S.P.A. (già ISP Vita S.P.A.) | C55: 1738 | D55: 1738 | E55: 0 | F55: 0 | G55: 0.13 | H55: 0.13 | I55: 0 | K55: 4.28
A56: Impresa vigilata | B56: INTESA SANPAOLO PROTEZIONE S.P.A. (già ISP Assicura S.P.A.) | C56: 4378 | D56: 0 | E56: 4177 | F56: 201 | G56: 2.89 | I56: 2.9 | J56: 2.76 | K56: 6.65
A57: Impresa vigilata | B57: ITAS - ISTITUTO TRENTINO-ALTO ADIGE PER ASSICURAZIONI SOCIETA' MUTUA DI ASSICURAZIONI | C57: 958 | D57: 0 | E57: 461 | F57: 497 | G57: 1.04 | I57: 0.74 | J57: 1.65 | K57: 6.2
A58: Impresa vigilata | B58: ITAS VITA S.P.A. | C58: 95 | D58: 95 | E58: 0 | F58: 0 | G58: 0.26 | H58: 0.26 | K58: 2.73
A59: Impresa vigilata | B59: LE ASSICURAZIONI DI ROMA - MUTUA ASSICURATRICE ROMANA | C59: 151 | D59: 0 | E59: 97 | F59: 54 | G59: 2.45 | I59: 2.68 | J59: 2.12 | K59: 9.53
A60: Impresa vigilata | B60: MEDIOLANUM ASSICURAZIONI S.P.A. | C60: 124 | D60: 0 | E60: 124 | F60: 0 | G60: 0.93 | I60: 0.93 | K60: 3.14
A61: Impresa vigilata | B61: MEDIOLANUM VITA S.P.A | C61: 321 | D61: 321 | E61: 0 | F61: 0 | G61: 0.05 | H61: 0.05 | K61: 3.89
A62: Impresa vigilata | B62: NET INSURANCE LIFE S.P.A. | C62: 4 | D62: 4 | E62: 0 | F62: 0 | G62: 0.03 | H62: 0.03 | K62: 0.06
A63: Impresa vigilata | B63: NET INSURANCE S.P.A. | C63: 115 | D63: 0 | E63: 115 | F63: 0 | G63: 0.98 | I63: 0.98 | K63: 1.5
A64: Impresa vigilata | B64: NOBIS COMPAGNIA DI ASSICURAZIONI S.P.A. | C64: 688 | D64: 0 | E64: 382 | F64: 306 | G64: 1.53 | I64: 1.14 | J64: 2.66 | K64: 1.97
A65: Impresa vigilata | B65: NOBIS VITA S.P.A. | C65: 7 | D65: 7 | E65: 0 | F65: 0 | G65: 0.05 | H65: 0.05 | K65: 3.24
A66: Impresa vigilata | B66: POSTE ASSICURA S.P.A. | C66: 3897 | D66: 0 | E66: 3897 | F66: 0 | G66: 7.11 | I66: 7.11 | K66: 5.41
A67: Impresa vigilata | B67: POSTE VITA S.P.A. | C67: 3943 | D67: 3943 | E67: 0 | F67: 0 | G67: 0.22 | H67: 0.22 | I67: 0 | K67: 5.57
A68: Impresa vigilata | B68: QUIXA ASSICURAZIONI S.P.A. | C68: 894 | D68: 0 | E68: 48 | F68: 846 | G68: 8.62 | I68: 1.11 | J68: 13.96 | K68: 17.42
A69: Impresa vigilata | B69: REVO INSURANCE S.P.A. | C69: 28 | D69: 0 | E69: 28 | F69: 0 | G69: 0.09 | I69: 0.09 | K69: 1.45
A70: Impresa vigilata | B70: S2C S.P.A. COMPAGNIA DI ASSICURAZIONI DI CREDITI E CAUZIONI | C70: 5 | E70: 5 | F70: 0 | G70: 0.13 | I70: 0.13 | K70: 3.07
A71: Impresa vigilata | B71: SACE BT S.P.A. | C71: 14 | D71: 0 | E71: 14 | F71: 0 | G71: 0.08 | I71: 0.08 | K71: 2.09
A72: Impresa vigilata | B72: SARA ASSICURAZIONI S.P.A. ASSICURATRICE UFFICIALE DELL'AUTOMOBILE CLUB D'ITALIA | C72: 1175 | D72: 0 | E72: 530 | F72: 645 | G72: 1.58 | I72: 1.46 | J72: 1.69 | K72: 2.61
A73: Impresa vigilata | B73: SARA VITA S.P.A. | C73: 9 | D73: 9 | E73: 0 | F73: 0 | G73: 0.07 | H73: 0.07 | K73: 1.29
A74: Impresa vigilata | B74: SCHWEIZERISCHE HAGEL-VERSICHERUNGS-GESELLSHAFT - SOCIETA' SVIZZERA DI | C74: 3 | D74: 0 | E74: 3 | F74: 0 | G74: 0.06 | I74: 0.06 | K74: 7.3
A75: Impresa vigilata | B75: SIAT SOCIETA' ITALIANA ASSICURAZIONI E RIASSICURAZIONI PER AZIONI | C75: 4 | D75: 0 | E75: 4 | F75: 0 | G75: 0.03 | I75: 0.03 | J75: 0 | K75: 3.35
A76: Impresa vigilata | B76: SLP - ASSICURAZIONI SPESE LEGALI PERITALI E RISCHI ACCESSORI S.P.A. | C76: 4 | D76: 0 | E76: 4 | F76: 0 | G76: 2.56 | I76: 2.56 | K76: 1.26
A77: Impresa vigilata | B77: SOCIETA' REALE MUTUA DI ASSICURAZIONI | C77: 2357 | D77: 74 | E77: 1226 | F77: 1057 | G77: 0.78 | H77: 0.07 | I77: 0.85 | J77: 2.01 | K77: 4.16
A78: Impresa vigilata | B78: TUTELA LEGALE S.P.A. | C78: 5 | D78: 0 | E78: 5 | F78: 0 | G78: 0.26 | I78: 0.26 | K78: 0.35
A79: Impresa vigilata | B79: UCA - ASSICURAZIONE SPESE LEGALI E PERITALI S.P.A. | C79: 16 | D79: 0 | E79: 16 | F79: 0 | G79: 0.33 | I79: 0.33 | K79: 0.28
A80: Impresa vigilata | B80: UNICREDIT ALLIANZ ASSICURAZIONI S.P.A. | C80: 1279 | D80: 0 | E80: 1147 | F80: 132 | G80: 3.04 | I80: 2.9 | J80: 5.33 | K80: 5.19
A81: Impresa vigilata | B81: UNICREDIT ALLIANZ VITA S.P.A. | C81: 315 | D81: 315 | E81: 0 | F81: 0 | G81: 0.06 | H81: 0.06 | K81: 3.11
A82: Impresa vigilata | B82: UNIPOL ASSICURAZIONI S.P.A. | C82: 15622 | D82: 509 | E82: 6638 | F82: 8475 | G82: 1.43 | H82: 0.14 | I82: 1.53 | J82: 2.86 | K82: 4.71
A83: Impresa vigilata | B83: UNISALUTE S.P.A. | C83: 3904 | D83: 0 | E83: 3904 | F83: 0 | G83: 3.85 | I83: 3.85 | K83: 4.74
A84: Impresa vigilata | B84: VERA ASSICURAZIONI S.P.A. | C84: 309 | D84: 0 | E84: 287 | F84: 22 | G84: 2.03 | I84: 1.98 | J84: 2.95 | K84: 4.23
A85: Impresa vigilata | B85: VERA PROTEZIONE S.P.A. | C85: 98 | D85: 98 | E85: 0 | F85: 0 | G85: 0.75 | H85: 0.75 | K85: 1.72
A86: Impresa vigilata | B86: VERA VITA S.P.A. | C86: 123 | D86: 123 | E86: 0 | F86: 0 | G86: 0.15 | H86: 0.15 | I86: 0 | K86: 9.46
A87: Impresa vigilata | B87: VERTI ASSICURAZIONI S.P.A. | C87: 1756 | D87: 0 | E87: 252 | F87: 1504 | G87: 7.91 | I87: 4.23 | J87: 9.26 | K87: 24.89
A88: Impresa vigilata | B88: VHV ITALIA ASSICURAZIONI S.P.A. | C88: 45 | D88: 0 | E88: 9 | F88: 36 | G88: 0.88 | I88: 0.31 | J88: 1.68 | K88: 3.62
A89: Impresa vigilata | B89: VITTORIA ASSICURAZIONI S.P.A. | C89: 3374 | D89: 45 | E89: 1346 | F89: 1983 | G89: 1.73 | H89: 0.13 | I89: 1.71 | J89: 2.43 | K89: 6.31
A90: Impresa vigilata | B90: ZURICH INSURANCE COMPANY LTD | C90: 755 | E90: 215 | F90: 540 | G90: 8.37 | I90: 3.84 | J90: 15.79 | K90: 20.53
A91: Impresa vigilata | B91: ZURICH INVESTMENTS LIFE S.P.A. | C91: 270 | D91: 270 | G91: 0.19 | H91: 0.19 | K91: 3.1
A92: Impresa estera | B92: ADMIRAL EUROPE COMPA?IA DE SEGUROS S.A. | C92: 1664 | D92: 0 | E92: 229 | F92: 1435 | G92: 5.19 | I92: 2.89 | J92: 5.94 | K92: 9.17
A93: Impresa estera | B93: ADRIATIC OSIGURANJE D.D. | C93: 725 | D93: 0 | E93: 6 | F93: 719 | G93: 7.84 | I93: 1.04 | J93: 8.29 | K93: 34.74
A94: Impresa estera | B94: AIG EUROPE S.A. | C94: 273 | D94: 0 | E94: 247 | F94: 26 | G94: 0.45 | I94: 0.4 | J94: NA (4) | K94: 0.45
A95: Impresa estera | B95: AIG EUROPE S.A. (LPS) | C95: 16 | D95: 0 | E95: 16 | F95: 0 | G95: 11.56 | I95: 11.56 | K95: 16.07
A96: Impresa estera | B96: AIOI NISSAY DOWA INSURANCE COMPANY OF EUROPE SE | C96: 250 | D96: 0 | E96: 139 | F96: 111 | G96: 1.27 | I96: 0.8 | J96: 4.62 | K96: 10.4
A97: Impresa estera | B97: ALLIANZ GLOBAL LIFE DAC | C97: 30 | D97: 30 | E97: 0 | F97: 0 | G97: 0.14 | H97: 0.14 | K97: 2.44
A98: Impresa estera | B98: AMTRUST INTERNATIONAL UNDERWRITERS DAC | C98: 48 | D98: 0 | E98: 48 | F98: 0 | G98: 2.09 | I98: 2.09 | K98: 8.43
A99: Impresa estera | B99: ARAG SE RAPPRESENTANZA GENERALE E DIREZIONE PER L'ITALIA | C99: 59 | D99: 0 | E99: 59 | F99: 0 | G99: 1.3 | I99: 1.3 | K99: 0.94
A100: Impresa estera | B100: ASSURANT EUROPE INSURANCE NV | C100: 121 | D100: 0 | E100: 121 | F100: 0 | G100: 3.96 | I100: 3.96 | K100: 0.34
A101: Impresa estera | B101: AWP HEALTH & LIFE SA | C101: 46 | D101: 0 | E101: 46 | F101: 0 | G101: 30.1 | I101: 30.1 | K101: NA (4)
A102: Impresa estera | B102: AWP P&C S.A. | C102: 310 | D102: 0 | E102: 310 | F102: 0 | G102: 4.42 | I102: 4.42 | K102: 0.94
A103: Impresa estera | B103: AWP P&C S.A. (LPS) | C103: 39 | D103: 0 | E103: 39 | F103: 0 | G103: 23 | I103: 23 | K103: 0.71
A104: Impresa estera | B104: AXA MPS FINANCIAL DAC | C104: 32 | D104: 32 | E104: 0 | F104: 0 | G104: 0.03 | H104: 0.03 | K104: 1.55
A105: Impresa estera | B105: AXERIA IARD S.A. | C105: 97 | D105: 0 | E105: 97 | F105: 0 | G105: 1.08 | I105: 1.08 | K105: 0.64
A106: Impresa estera | B106: BUPA GLOBAL DAC | C106: 88 | D106: 0 | E106: 88 | F106: 0 | G106: 23.35 | I106: 23.35 | K106: NA (4)
A107: Impresa estera | B107: CACI LIFE DAC | C107: 136 | D107: 136 | E107: 0 | F107: 0 | G107: 0.85 | H107: 0.85 | K107: 3.63
A108: Impresa estera | B108: CACI LIFE DAC (LPS) | C108: 136 | D108: 136 | E108: 0 | F108: 0 | G108: 1.65 | H108: 1.65 | K108: 2.78
A109: Impresa estera | B109: CACI NON LIFE DAC | C109: 42 | D109: 0 | E109: 42 | F109: 0 | G109: 0.84 | I109: 0.84 | K109: 1.27
A110: Impresa estera | B110: CACI NON LIFE DAC (LPS) | C110: 103 | D110: 0 | E110: 103 | F110: 0 | G110: 1.1 | I110: 1.1 | K110: 2.15
A111: Impresa estera | B111: CARDIF ASSURANCE VIE S.A. | C111: 312 | D111: 312 | E111: 0 | F111: 0 | G111: 1.01 | H111: 1.01 | K111: 1.94
A112: Impresa estera | B112: CARDIF ASSURANCES RISQUES DIVERS S.A. | C112: 654 | D112: 0 | E112: 654 | F112: 0 | G112: 4.32 | I112: 4.32 | K112: 3.9
A113: Impresa estera | B113: CHUBB EUROPEAN GROUP SE | C113: 350 | D113: 0 | E113: 350 | F113: 0 | G113: 1.01 | I113: 1.01 | J113: 0 | K113: 0.5
A114: Impresa estera | B114: CNP ASSURANCES S.A. | C114: 42 | D114: 14 | E114: 28 | F114: 0 | G114: 0.95 | H114: 0.42 | I114: 2.61 | K114: 3.58
A115: Impresa estera | B115: COLLINSON INSURANCE EUROPE LTD | C115: 233 | D115: 0 | E115: 233 | F115: 0 | G115: 15.88 | I115: 15.88 | K115: NA (4)
A116: Impresa estera | B116: ERGO REISEVERSICHERUNG AG | C116: 420 | D116: 0 | E116: 420 | F116: 0 | G116: 16.6 | I116: 16.6 | K116: 2.58
A117: Impresa estera | B117: EUROHERC OSIGURANJE D.D. | C117: 333 | D117: 0 | E117: 0 | F117: 333 | G117: 12.24 | J117: 12.24 | K117: NA(3)
A118: Impresa estera | B118: EUROP ASSISTANCE SA | C118: 57 | D118: 0 | E118: 57 | F118: 0 | G118: 9.77 | I118: 9.77 | K118: 8.57
A119: Impresa estera | B119: GAMALIFE COMPANHIA DE SEGUROS DE VIDA, SA | C119: 53 | D119: 53 | G119: 0.4 | H119: 0.4 | K119: 7.88
A120: Impresa estera | B120: GREAT LAKES INSURANCE SE | C120: 2081 | D120: 0 | E120: 276 | F120: 1805 | G120: 3.3 | I120: 1.35 | J120: 4.24 | K120: 7.25
A121: Impresa estera | B121: GREENVAL INSURANCE DAC | C121: 30 | D121: 0 | E121: 4 | F121: 26 | G121: 0.64 | I121: 0.49 | J121: 0.67 | K121: 0.76
A122: Impresa estera | B122: HANSARD EUROPE DAC (run off) | C122: 40 | D122: 40 | E122: 0 | F122: 0 | G122: NA (4) | H122: NA (4) | K122: NA (4)
A123: Impresa estera | B123: INSURANCE JSC DALLBOGG: LIFE AND HEALTH | C123: 1830 | D123: 0 | E123: 0 | F123: 1830 | G123: 17.88 | I123: 0 | J123: 19.78 | K123: 49.68
A124: Impresa estera | B124: INTER PARTNER ASSISTANCE SA | C124: 135 | D124: 0 | E124: 135 | F124: 0 | G124: 2.85 | I124: 2.85 | K124: 0.47
A125: Impresa estera | B125: IPTIQ EMEA P&C SA | C125: 3066 | D125: 0 | E125: 451 | F125: 2615 | G125: 4.21 | I125: 2.35 | J125: 4.88 | K125: 7.87
A126: Impresa estera | B126: IPTIQ EMEA P&C SA (LPS) | C126: 149 | D126: 0 | E126: 6 | F126: 143 | G126: NA (4) | I126: NA (4) | J126: NA (4) | K126: NA (4)
A127: Impresa estera | B127: LLOYD'S INSURANCE COMPANY SA | C127: 192 | D127: 0 | E127: 192 | F127: 0 | G127: 0.55 | I127: 0.55 | K127: 5.1
A128: Impresa estera | B128: MAPFRE ASISTENCIA, COMPA?IA INTERNATIONAL DE SEGUROS Y REASEGUROS, S.A. | C128: 26 | D128: 0 | E128: 26 | F128: 0 | G128: 0.87 | I128: 0.87 | K128: 0.68
A129: Impresa estera | B129: MEDIOLANUM INTERNATIONAL LIFE DAC | C129: 140 | D129: 140 | E129: 0 | F129: 0 | G129: 1.46 | H129: 1.46 | K129: 35.36
A130: Impresa estera | B130: MEDVIDA PARTNERS DE SEGUROS Y REASEGUROS S.A. (SOCIEDAD UNIPERSONAL) | C130: 21 | D130: 21 | E130: 0 | F130: 0 | G130: 0.31 | H130: 0.31 | I130: 0 | K130: 23.38
A131: Impresa estera | B131: METLIFE EUROPE DESIGNATED ACTIVITY COMPANY | C131: 1096 | D131: 718 | E131: 378 | F131: 0 | G131: 4.27 | H131: 4.58 | I131: 3.79 | K131: 8.32
A132: Impresa estera | B132: METLIFE EUROPE INSURANCE DESIGNATED ACTIVITY COMPANY | C132: 21 | E132: 21 | F132: 0 | G132: 1.11 | I132: 1.11 | K132: 0.62
A133: Impresa estera | B133: MMA IARD SA | C133: 74 | D133: 0 | E133: 74 | F133: 0 | G133: 0.37 | I133: 0.37 | K133: 1.53
A134: Impresa estera | B134: MONUMENT ASSURANCE LUXEMBOURG S.A. | C134: 7 | D134: 7 | E134: 0 | F134: 0 | G134: 1.31 | H134: 1.31 | K134: 4.37
A135: Impresa estera | B135: NOVIS INSURANCE COMPANY, NOVIS VERSICHERUNGSGESELLSCHAFT, NOVIS COMPAGNIA DI ASSICURAZIONI, NOVIS POIST'OVNA A.S. | C135: 253 | D135: 253 | E135: 0 | F135: 0 | G135: 14.78 | H135: 14.78 | K135: NA(3)
A136: Impresa estera | B136: RELYENS MUTUAL INSURANCE | C136: 38 | D136: 0 | E136: 38 | F136: 0 | G136: 0.27 | I136: 0.27 | K136: NA (4)
A137: Impresa estera | B137: SOGESSUR S.A. | C137: 1328 | D137: 0 | E137: 97 | F137: 1231 | G137: 15.49 | I137: 2.93 | J137: 23.38 | K137: 17.71
A138: Impresa estera | B138: WAKAM | C138: 209 | D138: 0 | E138: 197 | F138: 12 | G138: 5.26 | I138: 4.96 | K138: 4.66
A139: Impresa estera | B139: WEFOX INSURANCE AG | C139: 149 | D139: 0 | E139: 8 | F139: 141 | G139: NA (4) | I139: NA (4) | K139: NA (4)
A140: Impresa estera | B140: ZURICH INSURANCE EUROPE AG | C140: 1352 | E140: 453 | F140: 899 | G140: 0.8 | I140: 0.38 | J140: 1.84 | K140: 5.79
C143: Totale vita e danni | D143: Rami Vita | E143: Rami Danni (escl rc auto) | F143: Rc auto | G143: Valori medi
B144: Totale Imprese Italiane | C144: =IFERROR(SUMIF(A6:A140, "Impresa vigilata", C6:C140), 0) -> 94631 | D144: =IFERROR(SUMIF(A6:A140, "Impresa vigilata", D6:D140), 0) -> 13988 | E144: =IFERROR(SUMIF(A6:A140, "Impresa vigilata", E6:E140), 0) -> 40842 | F144: =IFERROR(SUMIF(A6:A140, "Impresa vigilata", F6:F140), 0) -> 39801 | G144: =IFERROR(AVERAGEIF(A6:A140, "Impresa vigilata", G6:G140), 0) -> 1.52 | H144: =IFERROR(AVERAGEIF(A6:A140, "Impresa vigilata", H6:H140), 0) -> 0.1738461538 | I144: =IFERROR(AVERAGEIF(A6:A140, "Impresa vigilata", I6:I140), 0) -> 1.523934426 | J144: =IFERROR(AVERAGEIF(A6:A140, "Impresa vigilata", J6:J140), 0) -> 4.410285714 | K144: =IFERROR(AVERAGEIF(A6:A140, "Impresa vigilata", K6:K140), 0) -> 5.196470588
B145: Totale Imprese Estere (UE) | C145: =IFERROR(SUMIF(A6:A140, "Impresa estera", C6:C140), 0) -> 18906 | D145: =IFERROR(SUMIF(A6:A140, "Impresa estera", D6:D140), 0) -> 1892 | E145: =IFERROR(SUMIF(A6:A140, "Impresa estera", E6:E140), 0) -> 5688 | F145: =IFERROR(SUMIF(A6:A140, "Impresa estera", F6:F140), 0) -> 11326 | G145: =IFERROR(AVERAGEIF(A6:A140, "Impresa estera", G6:G140), 0) -> 5.611521739 | H145: =IFERROR(AVERAGEIF(A6:A140, "Impresa estera", H6:H140), 0) -> 2.245 | I145: =IFERROR(AVERAGEIF(A6:A140, "Impresa estera", I6:I140), 0) -> 5.010833333 | J145: =IFERROR(AVERAGEIF(A6:A140, "Impresa estera", J6:J140), 0) -> 7.807272727 | K145: =IFERROR(AVERAGEIF(A6:A140, "Impresa estera", K6:K140), 0) -> 7.47875
B146: Totale complessivo | C146: =C144+C145 -> 113537 | D146: =D144+D145 -> 15880 | E146: 46530 | F146: 51127
A148: (1) - Imprese con sede legale in un Paese UE, operanti in Italia in regime di stabilimento o di libera prestazione dei servizi (ossia senza una sede stabile in Italia). Sono tenute alla comunicazione le sole imprese che ricevono nell'anno più di 20 reclami.
A149: (2) - Fonte premi: segnalazioni Solvency II/PTRIM, per le imprese in LPS sono quelli riportati nel documento tecnico all. 2 Reg. 24/2008.
A150: (3) - NA: Outlier non inserito nella media - per visualizzare il valore fare click sulla cella.
A151: (4) - NA: dato non inserito nella media in quanto non significativo rispetto al valore dell'indicatore/condizionato da operazioni societarie infrannuali/run off nel comparto.
A152: (5) - NA: l'impresa, costituita e autorizzata a fine 2023 al solo fine di gestire il compendio Eurovita (ora in LCA), in primis il portafoglio dei contratti già facenti capo alla stessa.
A153: Fonte: elaborazione prospetti informatici inviati dalle imprese all'IVASS ai sensi del Regolamento n. 24/2008 - Segnalazioni Infostat al 6 maggio 2025.
